Department family,Entity,Date,Expense Type,Expense area,Supplier,Transaction number,Amount,Narrative
Department for Culture Media and Sport,Department for Culture Media and Sport,05/04/2017,TSOL Disbursement Costs,Legal Advisers to DCMS (TSOL),Government Legal Department,30049527,"24,122.77",GLD Legal Billing for Professional Services
Department for Culture Media and Sport,Department for Culture Media and Sport,10/04/2017,Current Grants Private Sector,LPW and Ecclesiastical,The Archbishops Council,50002991,"25,070.44",CCB46/001Ripon Cathedral Grant APR17 4TH rd 2nd claim
Department for Culture Media and Sport,Department for Culture Media and Sport,10/04/2017,Current Grants Private Sector,LPW and Ecclesiastical,The Archbishops Council,50003013,"28,015.71",CCB042/001 Worchester Cathedral Grant Apr17 4th r
Department for Culture Media and Sport,Department for Culture Media and Sport,07/04/2017,Tribunal Administration Fees,Sports - Programme Costs,Sport Resolutions (UK),30049564,"28,166.67",National Anti Doping Panel (NADP)
Department for Culture Media and Sport,Department for Culture Media and Sport,10/04/2017,Current Grants Private Sector,LPW and Ecclesiastical,The Archbishops Council,50003011,"28,765.67",CCB01/001 WElls Cathedral Grant Apr17 5th rd 1st
Department for Culture Media and Sport,Department for Culture Media and Sport,24/04/2017,Current Grants Private Sector,Other Heritage Programme Costs,Topmark Claims Management Ltd,50003032,"29,143.11",Memorial Grants Scheme 2017/001
Department for Culture Media and Sport,Department for Culture Media and Sport,10/04/2017,Current Grants Private Sector,LPW and Ecclesiastical,The Archbishops Council,50002996,"30,672.00",CCB26/001 Norwich Cathedral Grant Apr17 4th rd
Department for Culture Media and Sport,Department for Culture Media and Sport,10/04/2017,Current Grants Private Sector,LPW and Ecclesiastical,The Archbishops Council,50003010,"31,448.46",CCB38/001 Southwell Cathedral Grant Apr17 3rd rd
Department for Culture Media and Sport,Department for Culture Media and Sport,25/04/2017,Ceremonials - Other Costs,World War I Centenary Prog,H Power Group,30049530,"35,847.60",FWW1 Commemmoration Event - Ypres
Department for Culture Media and Sport,Department for Culture Media and Sport,03/04/2017,Other Programme Procurement,Data Protection Unit Program,Dolaugu Ltd,30049545,"36,387.00",Development of innovative technical protection
Department for Culture Media and Sport,Department for Culture Media and Sport,03/04/2017,Finance & Accounting Services,ISSC1 Shared Services Project,Historic England,30049540,"37,471.75",Shared Services Contract
Department for Culture Media and Sport,Department for Culture Media and Sport,10/04/2017,Current Grants Private Sector,LPW and Ecclesiastical,The Archbishops Council,50003009,"41,679.00",CCB34/001 Salisbury Cathedral Grant Apr 17 4th rd
Department for Culture Media and Sport,Department for Culture Media and Sport,03/04/2017,Current Grants Private Sector,Media - Programme Costs,Multiplex Broadcasting Services NI Ltd,50002982,"43,900.09",Grant Claim for Northern Ireland Multiplex Prog
Department for Culture Media and Sport,Department for Culture Media and Sport,10/04/2017,Current Grants Private Sector,LPW and Ecclesiastical,The Archbishops Council,50003005,"48,705.66",CCB07/001 Carlisle Cathedral Grant Apr17 4th Rd 3
Department for Culture Media and Sport,Department for Culture Media and Sport,10/04/2017,Current Grants Private Sector,LPW and Ecclesiastical,The Archbishops Council,50003004,"59,500.00",CCB09/001Chester Cathedral Grant Apr17 4th rd 2nd
Department for Culture Media and Sport,Department for Culture Media and Sport,10/04/2017,Current Grants Private Sector,LPW and Ecclesiastical,The Archbishops Council,50002998,"70,212.12",CCB99/001 Liverpool Met RC Cathedral Grant Apr17
Department for Culture Media and Sport,Department for Culture Media and Sport,03/04/2017,Current Grants Private Sector,DD2 Program,National College for Digital Skills,50002987,"76,944.00",Drawdown grant for Development ADA Advance Prog
Department for Culture Media and Sport,Department for Culture Media and Sport,25/04/2017,Ceremonials - Other Costs,World War I Centenary Prog,H Power Group,30049529,"77,258.84",FWW1 Commemmoration Event - Ypres
Department for Culture Media and Sport,Department for Culture Media and Sport,03/04/2017,Current Grants Private Sector,GIA Architecture+Heritage,Greenwich Foundation for the RN College,50002972,"80,666.00",ORNC - Apr 2017 Grant Payment
Department for Culture Media and Sport,Department for Culture Media and Sport,03/04/2017,Grant-in-Aid (DCMS NDPBs),GIA Museums & Galleries,Sir John Soane's Museum,50002930,"81,000.00",SJSM GiA April 2017 2017
Department for Culture Media and Sport,Department for Culture Media and Sport,10/04/2017,Current Grants Private Sector,LPW and Ecclesiastical,The Archbishops Council,50003006,"90,052.40",CCB13/001 Durham Cathedral Grant Apr17 4th rd 1st
Department for Culture Media and Sport,Department for Culture Media and Sport,28/04/2017,Research,DD3 Program,TechUK,50003038,"95,000.00",TechUK
Department for Culture Media and Sport,Department for Culture Media and Sport,10/04/2017,Current Grants Private Sector,LPW and Ecclesiastical,The Archbishops Council,50003014,"100,000.00",DCMS FWW Admin Costs 2016
Department for Culture Media and Sport,Department for Culture Media and Sport,19/04/2017,T&S UK (Officials only),Procurement,Redfern Travel Limited,30049563,"102,123.39",Redfern Travel - New Travel contract
Department for Culture Media and Sport,Department for Culture Media and Sport,10/04/2017,Current Grants Private Sector,LPW and Ecclesiastical,The Archbishops Council,50003003,"109,648.10",CCB12/001 Derby Cathedral Grant Apr17 4th rd 4th
Department for Culture Media and Sport,Department for Culture Media and Sport,03/04/2017,Grant-in-Aid (DCMS NDPBs),GIA Museums & Galleries,Geffrye Museum,50002913,"124,674.00",GM GiA April 2017 2017
Department for Culture Media and Sport,Department for Culture Media and Sport,05/04/2017,Finance & Accounting Services,ISSC1 Shared Services Project,Historic England,30049542,"125,589.00",Shared Services Contract
Department for Culture Media and Sport,Department for Culture Media and Sport,03/04/2017,Grant-in-Aid (DCMS NDPBs),GIA Museums & Galleries,Horniman Museum,50002914,"125,883.00",HM GiA April 2017 2017
Department for Culture Media and Sport,Department for Culture Media and Sport,03/04/2017,Grant-in-Aid (DCMS NDPBs),GIA Sports bodies,Sport Ground Safety Authority,50002929,"127,000.00",SGSA GiA April 2017 2017
Department for Culture Media and Sport,Department for Culture Media and Sport,19/04/2017,Waste Management,Estates & Property Services,Department of Education,30049550,"131,083.13","cleaning,maint,security etc"
Department for Culture Media and Sport,Department for Culture Media and Sport,10/04/2017,Current Grants Private Sector,LPW and Ecclesiastical,The Archbishops Council,50003012,"145,400.00",CCB43/001 York Minster Grant Apr17 4th rd 3r
Department for Culture Media and Sport,Department for Culture Media and Sport,24/04/2017,Current Grants Private Sector,LPW and Ecclesiastical,Topmark Claims Management Ltd,50003030,"163,739.01",Funding for LPW 130417_190417
Department for Culture Media and Sport,Department for Culture Media and Sport,26/04/2017,Capital Grants to LAs,Broadband UK Capital+Programme,Northamptonshire County Council,50003033,"183,804.00",RUUSC NTNS C1 Q3 16-17
Department for Culture Media and Sport,Department for Culture Media and Sport,03/04/2017,Grant-in-Aid (DCMS NDPBs),OFCOM,OFCOM,50002923,"185,916.00",OfOrp GiA April 2017 2017
Department for Culture Media and Sport,Department for Culture Media and Sport,25/04/2017,Capital Grant Private Sector,Grant support to NFTS,National Film & Television School,50003019,"205,421.00",NFTS - April 2017 Grant Payment
Department for Culture Media and Sport,Department for Culture Media and Sport,19/04/2017,Capital Grants to LAs,Broadband UK Capital+Programme,NYnet Ltd,50003021,"220,179.00",RUUSC NYNT C9 17-18
Department for Culture Media and Sport,Department for Culture Media and Sport,03/04/2017,Grant-in-Aid (DCMS NDPBs),GIA Museums & Galleries,Wallace Collection,50002935,"225,000.00",TWC GiA April 2017 2017
Department for Culture Media and Sport,Department for Culture Media and Sport,03/04/2017,Grant-in-Aid (DCMS NDPBs),GIA Architecture+Heritage,Churches Conservation Trust,50002911,"228,166.00",CCT GiA April 2017 2017
Department for Culture Media and Sport,Department for Culture Media and Sport,19/04/2017,Capital Grants to LAs,Broadband UK Capital+Programme,North Lincolnshire Council (Rural),50003023,"260,417.00",RUTWO NLNC C4 Q3 16-17
Department for Culture Media and Sport,Department for Culture Media and Sport,05/04/2017,Grant-in-Aid (DCMS NDPBs),GIA Gambling + Lottery bodies,National Lottery Commission,50002936,"311,301.00",NLC GiA April 2017 2017
Department for Culture Media and Sport,Department for Culture Media and Sport,21/04/2017,Current Grants Private Sector,DD2 Program,TECH CITY (UK) LTD,50003027,"314,342.00",MAR Grant Claim for TCUK
Department for Culture Media and Sport,Department for Culture Media and Sport,21/04/2017,Current Grants Private Sector,DD2 Program,TECH CITY (UK) LTD,50003028,"322,409.00",March Grant Claim for Tech North
Department for Culture Media and Sport,Department for Culture Media and Sport,03/04/2017,Grant-in-Aid (DCMS NDPBs),GIA Museums & Galleries,Imperial War Museum,50002916,"387,745.00",IWM GiA April 2017 2017
Department for Culture Media and Sport,Department for Culture Media and Sport,26/04/2017,Capital Grants to LAs,Broadband UK Capital+Programme,Hampshire County Council,50003036,"394,330.00",RUTWO HAMP C2 Q2 16-17
Department for Culture Media and Sport,Department for Culture Media and Sport,26/04/2017,Capital Grants to LAs,Broadband UK Capital+Programme,West Yorkshire Combined Authority,50003037,"441,647.00",1902 RUTWO WYRK C4 Q3 16-17
Department for Culture Media and Sport,Department for Culture Media and Sport,13/04/2017,Current Grants Private Sector,LPW and Ecclesiastical,Topmark Claims Management Ltd,50003017,"447,286.62",Funding for LPW 060417-120417
Department for Culture Media and Sport,Department for Culture Media and Sport,03/04/2017,Grant-in-Aid (DCMS NDPBs),GIA Tourism bodies,VisitBritain,50002910,"500,000.00",VB GiA April 2017 2017
Department for Culture Media and Sport,Department for Culture Media and Sport,03/04/2017,Grant-in-Aid (DCMS NDPBs),GIA S4C Welsh Fourth Channel,S4C-Sianel Pedwar Cymru-all inv inc. GIA,50002927,"514,000.00",S4C GiA April 2017 2017
Department for Culture Media and Sport,Department for Culture Media and Sport,28/04/2017,Current Grants Private Sector,LPW and Ecclesiastical,Topmark Claims Management Ltd,50003072,"515,694.64",Funding for LPW 200417_260417
Department for Culture Media and Sport,Department for Culture Media and Sport,03/04/2017,Grant-in-Aid (DCMS NDPBs),GIA Museums & Galleries,National Portrait Gallery,50002920,"553,083.00",NPG GiA April 2017 2017
Department for Culture Media and Sport,Department for Culture Media and Sport,19/04/2017,Capital Grants to LAs,Broadband UK Capital+Programme,East Cheshire BC Council Fund Account,50003025,"576,651.00",RUTWO CHES C5 Q3 16-17
Department for Culture Media and Sport,Department for Culture Media and Sport,03/04/2017,Grant-in-Aid (DCMS NDPBs),GIA Museums & Galleries,The Royal Armouries,50002926,"579,238.00",RA GiA April 2017 2017
Department for Culture Media and Sport,Department for Culture Media and Sport,03/04/2017,Grant-in-Aid (DCMS NDPBs),GIA Sports bodies,United Kingdom Anti Doping Ltd,50002933,"600,000.00",UKAD GiA April 2017 2017
Department for Culture Media and Sport,Department for Culture Media and Sport,26/04/2017,Capital Grants to LAs,Broadband UK Capital+Programme,Kent County Council,50003034,"619,739.00",RUTWO KENT C5 Q3 16-17
Department for Culture Media and Sport,Department for Culture Media and Sport,19/04/2017,Capital Grants to LAs,Broadband UK Capital+Programme,Cumbria County Council,50003024,"623,429.00",RUTWO CMBR C2 Q3 16-17
Department for Culture Media and Sport,Department for Culture Media and Sport,26/04/2017,Capital Grants to LAs,Broadband UK Capital+Programme,Hampshire County Council,50003035,"905,695.00",RUTWO HAMP C3 Q3 16-17
Department for Culture Media and Sport,Department for Culture Media and Sport,19/04/2017,Capital Grants to LAs,Broadband UK Capital+Programme,Warwickshire County Council,50003022,"1,168,963.00",RUTWO WARW C4 Q3 16-17
Department for Culture Media and Sport,Department for Culture Media and Sport,05/04/2017,Grant-in-Aid (DCMS NDPBs),GIA Museums & Galleries,National Gallery,50002917,"1,314,173.00",NG GiA April 2017 2017
Department for Culture Media and Sport,Department for Culture Media and Sport,07/04/2017,Current Grants Private Sector,LPW and Ecclesiastical,Topmark Claims Management Ltd,50002990,"1,342,290.74",Funding for LPW 300317/060417
Department for Culture Media and Sport,Department for Culture Media and Sport,03/04/2017,Grant-in-Aid (DCMS NDPBs),GIA Museums & Galleries,National Museums & Galleries Merseyside,50002919,"1,492,354.00",NML GiA April 2017 2017
Department for Culture Media and Sport,Department for Culture Media and Sport,05/04/2017,Grant-in-Aid (DCMS NDPBs),GIA Museums & Galleries,National Maritime Museum,50002918,"1,495,662.00",RMG GiA April 2017 2017
Department for Culture Media and Sport,Department for Culture Media and Sport,11/04/2017,Grant-in-Aid (DCMS NDPBs),GIA Sports bodies,United Kingdom Sports Council,50003015,"1,800,000.00",Additional GIA Payment April
Department for Culture Media and Sport,Department for Culture Media and Sport,03/04/2017,Grant-in-Aid (DCMS NDPBs),GIA British Film Institute,British Film Institute,50002907,"2,173,585.00",BFI GiA April 2017 2017
Department for Culture Media and Sport,Department for Culture Media and Sport,03/04/2017,Grant-in-Aid (DCMS NDPBs),GIA Museums & Galleries,Natural History Museum,50002921,"2,932,522.00",NHM GiA April 2017 2017
Department for Culture Media and Sport,Department for Culture Media and Sport,03/04/2017,Grant-in-Aid (DCMS NDPBs),GIA Museums & Galleries,Victoria & Albert Museum,50002934,"3,110,500.00",VA GiA April 2017 2017
Department for Culture Media and Sport,Department for Culture Media and Sport,05/04/2017,Grant-in-Aid (DCMS NDPBs),GIA Museums & Galleries,Tate Gallery,50002931,"3,172,167.00",TATE GiA April 2017 2017
Department for Culture Media and Sport,Department for Culture Media and Sport,03/04/2017,Grant-in-Aid (DCMS NDPBs),GIA Museums & Galleries,British Museum,50002909,"3,872,560.00",BM GiA April 2017 2017
Department for Culture Media and Sport,Department for Culture Media and Sport,03/04/2017,Grant-in-Aid (DCMS NDPBs),GIA Museums & Galleries,Science Museum Group (ex-NMSI),50002928,"3,928,010.00",SMG GiA April 2017 2017
Department for Culture Media and Sport,Department for Culture Media and Sport,03/04/2017,Grant-in-Aid (DCMS NDPBs),OFCOM,OFCOM,50002925,"4,167,079.00",OfUHF GiA April 2017 2017
Department for Culture Media and Sport,Department for Culture Media and Sport,03/04/2017,Grant-in-Aid (DCMS NDPBs),OFCOM,OFCOM,50002924,"4,443,564.00",OfSpMa GiA April 2017 2017
Department for Culture Media and Sport,Department for Culture Media and Sport,03/04/2017,Grant-in-Aid (DCMS NDPBs),GIA Architecture+Heritage,National Heritage Memorial Fund,50002922,"5,100,000.00",NHMF GiA April 2017 2017
Department for Culture Media and Sport,Department for Culture Media and Sport,03/04/2017,Grant-in-Aid (DCMS NDPBs),GIA Libraries bodies,British Library,50002908,"6,518,907.00",BL GiA April 2017 2017
Department for Culture Media and Sport,Department for Culture Media and Sport,05/04/2017,Grant-in-Aid (DCMS NDPBs),GIA Sports bodies,United Kingdom Sports Council,50002937,"9,545,490.00",UKS - April 2017 GIA payment
Department for Culture Media and Sport,Department for Culture Media and Sport,05/04/2017,Grant-in-Aid (DCMS NDPBs),GIA Architecture+Heritage,Historic England (GIA),50002912,"13,596,000.00",HE GiA April 2017 2017
Department for Culture Media and Sport,Department for Culture Media and Sport,03/04/2017,Grant-in-Aid (DCMS NDPBs),GIA Arts bodies,Arts Council of England,50002905,"64,891,649.00",ACE GiA April 2017 2017
Department for Culture Media and Sport,Department for Culture Media and Sport,11/04/2017,Grant to BBC:Home Broadcasting,Home Broadcasting:Grant to BBC,British Broadcasting Corporation,50002906,"434,240,767.00",BBC GiA April 2017 2017
1,,,,,,,,
